[Event "January 9 Late 2024"]
[Site "https://www.chess.com"]
[Date "2024.01.09"]
[Round "10"]
[White "Maksimovic, Bojan"]
[Black "Iturrizaga Bonelli, Eduardo"]
[Result "0-1"]
[Board "11"]
[TimeControl "180+1"]
[WhiteFideId "14408120"]
[BlackFideId "3901211"]
[WhiteElo "2864"]
[BlackElo "3043"]
[WhiteTeam "BIH"]
[BlackTeam "ESP"]
[WhiteClock "0:00:00"]
[BlackClock "0:00:15"]

1. a3 {[%clk 0:03:00]}  Nf6 {[%clk 0:02:59]} 2. h3 {[%clk 0:03:00]}  g6 {[%clk 0:03:00]} 3. d4 {[%clk 0:02:57]}  Bg7 {[%clk 0:03:01]} 4. c4 {[%clk 0:02:57]}  O-O {[%clk 0:03:01]} 5. Nf3 {[%clk 0:02:57]}  d6 {[%clk 0:02:53]} 6. Nc3 {[%clk 0:02:57]}  Nbd7 {[%clk 0:02:48]} 7. e4 {[%clk 0:02:56]}  e5 {[%clk 0:02:48]} 8. d5 {[%clk 0:02:54]}  Nc5 {[%clk 0:02:48]} 9. Bd3 {[%clk 0:02:24]}  a5 {[%clk 0:02:48]} 10. b3 {[%clk 0:02:23]}  Nh5 {[%clk 0:02:45]} 11. Bc2 {[%clk 0:02:19]}  f5 {[%clk 0:02:44]} 12. Be3 {[%clk 0:02:10]}  Nf4 {[%clk 0:02:36]} 13. O-O {[%clk 0:02:03]}  b6 {[%clk 0:02:27]} 14. b4 {[%clk 0:01:51]}  fxe4 {[%clk 0:02:09]} 15. Nxe4 {[%clk 0:01:01]}  axb4 {[%clk 0:02:07]} 16. axb4 {[%clk 0:00:54]}  Rxa1 {[%clk 0:02:08]} 17. Qxa1 {[%clk 0:00:54]}  Ne2+ {[%clk 0:01:52]} 18. Kh2 {[%clk 0:00:50]}  Rxf3 {[%clk 0:01:53]} 19. bxc5 {[%clk 0:00:17]}  Qh4 {[%clk 0:01:20]} 20. Ng5 {[%clk 0:00:16]}  e4 {[%clk 0:01:20]} 21. Qa8 {[%clk 0:00:13]}  Be5+ {[%clk 0:01:19]} 22. Kh1 {[%clk 0:00:13]}  Ng3+ {[%clk 0:00:58]} 23. Kg1 {[%clk 0:00:12]}  Ne2+ {[%clk 0:00:58]} 24. Kh1 {[%clk 0:00:13]}  Rf8 {[%clk 0:00:50]} 25. Qa3 {[%clk 0:00:12]}  Ng3+ {[%clk 0:00:45]} 26. Kg1 {[%clk 0:00:12]}  Nxf1 {[%clk 0:00:27]} 27. Kxf1 {[%clk 0:00:13]}  bxc5 {[%clk 0:00:27]} 28. Ne6 {[%clk 0:00:13]}  Bxe6 {[%clk 0:00:24]} 29. dxe6 {[%clk 0:00:14]}  Bd4 {[%clk 0:00:24]} 30. Ke1 {[%clk 0:00:04]}  Rxf2 {[%clk 0:00:16]} 31. Bxf2 {[%clk 0:00:01]}  Qxf2+ {[%clk 0:00:14]} 32. Kd1 {[%clk 0:00:01]}  Qf1+ {[%clk 0:00:15]} 33. Kd2 {[%clk 0:00:00]}  e3+ {[%clk 0:00:15]} 0-1

[Event "January 9 Late 2024"]
[Site "https://www.chess.com"]
[Date "2024.01.09"]
[Round "10"]
[White "Xiong, Jeffery"]
[Black "Remizov, Yaroslav"]
[Result "0-1"]
[Board "12"]
[TimeControl "180+1"]
[WhiteFideId "2047640"]
[BlackFideId "34134015"]
[WhiteElo "3031"]
[BlackElo "2857"]
[WhiteTeam "USA"]
[BlackTeam "RUS"]
[WhiteClock "0:00:45"]
[BlackClock "0:00:05"]

1. e4 {[%clk 0:03:00]}  c5 {[%clk 0:02:59]} 2. Nf3 {[%clk 0:03:01]}  d6 {[%clk 0:02:59]} 3. Nc3 {[%clk 0:03:01]}  Nf6 {[%clk 0:02:57]} 4. d4 {[%clk 0:03:02]}  cxd4 {[%clk 0:02:58]} 5. Qxd4 {[%clk 0:03:03]}  Nc6 {[%clk 0:02:54]} 6. Qd3 {[%clk 0:03:03]}  g6 {[%clk 0:02:49]} 7. Nd5 {[%clk 0:03:03]}  Bg7 {[%clk 0:02:48]} 8. c3 {[%clk 0:03:04]}  O-O {[%clk 0:02:46]} 9. Bg5 {[%clk 0:03:04]}  Nxd5 {[%clk 0:02:17]} 10. exd5 {[%clk 0:03:05]}  Ne5 {[%clk 0:02:17]} 11. Nxe5 {[%clk 0:03:06]}  Bxe5 {[%clk 0:02:17]} 12. Be2 {[%clk 0:03:06]}  Bf5 {[%clk 0:02:12]} 13. Qd2 {[%clk 0:03:06]}  Re8 {[%clk 0:02:09]} 14. O-O {[%clk 0:03:05]}  Rc8 {[%clk 0:02:05]} 15. Rfe1 {[%clk 0:03:04]}  Qb6 {[%clk 0:02:02]} 16. Be3 {[%clk 0:03:01]}  Qa5 {[%clk 0:02:02]} 17. a4 {[%clk 0:02:58]}  a6 {[%clk 0:01:56]} 18. Ra3 {[%clk 0:02:37]}  Be4 {[%clk 0:01:36]} 19. Rd1 {[%clk 0:02:34]}  e6 {[%clk 0:01:29]} 20. dxe6 {[%clk 0:02:35]}  Rxe6 {[%clk 0:01:28]} 21. Bg4 {[%clk 0:02:35]}  f5 {[%clk 0:01:26]} 22. Be2 {[%clk 0:02:35]}  Rce8 {[%clk 0:01:01]} 23. Bc4 {[%clk 0:02:18]}  d5 {[%clk 0:01:01]} 24. Ba2 {[%clk 0:02:19]}  Qc7 {[%clk 0:00:49]} 25. g3 {[%clk 0:02:02]}  f4 {[%clk 0:00:38]} 26. gxf4 {[%clk 0:01:58]}  Bd6 {[%clk 0:00:38]} 27. b4 {[%clk 0:01:56]}  Qf7 {[%clk 0:00:30]} 28. c4 {[%clk 0:01:46]}  Qf5 {[%clk 0:00:26]} 29. c5 {[%clk 0:00:57]}  Qg4+ {[%clk 0:00:21]} 30. Kf1 {[%clk 0:00:57]}  Qg2+ {[%clk 0:00:06]} 31. Ke1 {[%clk 0:00:57]}  Bf3 {[%clk 0:00:06]} 32. Qxd5 {[%clk 0:00:47]}  Qg1+ {[%clk 0:00:04]} 33. Kd2 {[%clk 0:00:45]}  Qxd1+ {[%clk 0:00:05]} 0-1

[Event "January 9 Late 2024"]
[Site "https://www.chess.com"]
[Date "2024.01.09"]
[Round "10"]
[White "Dominguez Perez, Leinier"]
[Black "Niedbala, Bartlomiej"]
[Result "1-0"]
[Board "15"]
[TimeControl "180+1"]
[WhiteFideId "3503240"]
[BlackFideId "21834008"]
[WhiteElo "3006"]
[BlackElo "2715"]
[WhiteTeam "USA"]
[BlackTeam "POL"]
[WhiteClock "0:01:30"]
[BlackClock "0:00:16"]

1. e4 {[%clk 0:03:00]}  c6 {[%clk 0:02:45]} 2. d4 {[%clk 0:03:00]}  d5 {[%clk 0:02:43]} 3. e5 {[%clk 0:03:01]}  Bf5 {[%clk 0:02:43]} 4. Nf3 {[%clk 0:03:01]}  e6 {[%clk 0:02:43]} 5. Be2 {[%clk 0:03:01]}  Nd7 {[%clk 0:02:44]} 6. O-O {[%clk 0:03:01]}  a5 {[%clk 0:02:39]} 7. Ne1 {[%clk 0:02:45]}  a4 {[%clk 0:02:38]} 8. c3 {[%clk 0:02:43]}  h6 {[%clk 0:02:37]} 9. Nd2 {[%clk 0:02:38]}  Ne7 {[%clk 0:02:37]} 10. Ndf3 {[%clk 0:02:33]}  g5 {[%clk 0:02:32]} 11. h3 {[%clk 0:02:31]}  Bg7 {[%clk 0:02:33]} 12. Bd3 {[%clk 0:02:28]}  Qb6 {[%clk 0:02:26]} 13. Rb1 {[%clk 0:02:23]}  Qc7 {[%clk 0:02:10]} 14. Nc2 {[%clk 0:02:12]}  c5 {[%clk 0:02:05]} 15. Bxf5 {[%clk 0:01:58]}  Nxf5 {[%clk 0:02:05]} 16. Ne3 {[%clk 0:01:59]}  Nxe3 {[%clk 0:01:57]} 17. Bxe3 {[%clk 0:01:58]}  c4 {[%clk 0:01:48]} 18. Nh2 {[%clk 0:01:58]}  a3 {[%clk 0:01:35]} 19. b3 {[%clk 0:01:55]}  cxb3 {[%clk 0:01:32]} 20. Rxb3 {[%clk 0:01:50]}  b6 {[%clk 0:01:27]} 21. f4 {[%clk 0:01:48]}  gxf4 {[%clk 0:01:11]} 22. Bxf4 {[%clk 0:01:48]}  h5 {[%clk 0:01:09]} 23. Nf3 {[%clk 0:01:38]}  f5 {[%clk 0:00:36]} 24. exf6 {[%clk 0:01:37]}  Qxf4 {[%clk 0:00:37]} 25. fxg7 {[%clk 0:01:38]}  Rg8 {[%clk 0:00:37]} 26. Qe2 {[%clk 0:01:39]}  Qd6 {[%clk 0:00:20]} 27. Ng5 {[%clk 0:01:39]}  O-O-O {[%clk 0:00:16]} 28. Nf7 {[%clk 0:01:30]} 1-0

[Event "January 9 Late 2024"]
[Site "https://www.chess.com"]
[Date "2024.01.09"]
[Round "10"]
[White "Tari, Aryan"]
[Black "Naroditsky, Daniel"]
[Result "0-1"]
[Board "16"]
[TimeControl "180+1"]
[WhiteFideId "1510045"]
[BlackFideId "2026961"]
[WhiteElo "2901"]
[BlackElo "3137"]
[WhiteTeam "NOR"]
[BlackTeam "USA"]
[WhiteClock "0:00:00"]
[BlackClock "0:00:19"]

1. e4 {[%clk 0:02:52]}  c5 {[%clk 0:03:00]} 2. Nf3 {[%clk 0:02:51]}  d6 {[%clk 0:03:00]} 3. Bb5+ {[%clk 0:02:48]}  Nd7 {[%clk 0:03:00]} 4. O-O {[%clk 0:02:45]}  a6 {[%clk 0:03:00]} 5. Bd3 {[%clk 0:02:45]}  Ngf6 {[%clk 0:03:01]} 6. Re1 {[%clk 0:02:45]}  e6 {[%clk 0:02:43]} 7. c3 {[%clk 0:02:38]}  b5 {[%clk 0:02:41]} 8. Bc2 {[%clk 0:02:38]}  Bb7 {[%clk 0:02:41]} 9. d4 {[%clk 0:02:38]}  Be7 {[%clk 0:02:39]} 10. Nbd2 {[%clk 0:02:32]}  O-O {[%clk 0:02:39]} 11. Nf1 {[%clk 0:02:32]}  cxd4 {[%clk 0:02:33]} 12. cxd4 {[%clk 0:02:32]}  Re8 {[%clk 0:02:32]} 13. Ng3 {[%clk 0:02:32]}  Rc8 {[%clk 0:02:30]} 14. Bd2 {[%clk 0:02:31]}  Nb6 {[%clk 0:02:26]} 15. Ba5 {[%clk 0:02:27]}  Nfd7 {[%clk 0:02:14]} 16. b3 {[%clk 0:02:26]}  Qc7 {[%clk 0:02:12]} 17. Bd3 {[%clk 0:02:26]}  Qb8 {[%clk 0:02:11]} 18. Qe2 {[%clk 0:02:23]}  Bf8 {[%clk 0:02:01]} 19. a4 {[%clk 0:02:19]}  bxa4 {[%clk 0:01:55]} 20. bxa4 {[%clk 0:02:20]}  Qa7 {[%clk 0:01:55]} 21. Reb1 {[%clk 0:02:17]}  d5 {[%clk 0:01:42]} 22. e5 {[%clk 0:01:44]}  g6 {[%clk 0:01:27]} 23. Bxb6 {[%clk 0:01:30]}  Nxb6 {[%clk 0:01:28]} 24. Qb2 {[%clk 0:01:30]}  Ba8 {[%clk 0:01:28]} 25. Qd2 {[%clk 0:01:15]}  Nc4 {[%clk 0:01:26]} 26. Qf4 {[%clk 0:01:15]}  Qe7 {[%clk 0:01:16]} 27. h4 {[%clk 0:01:15]}  Bg7 {[%clk 0:01:09]} 28. h5 {[%clk 0:01:10]}  Bc6 {[%clk 0:01:08]} 29. Nh2 {[%clk 0:01:03]}  f6 {[%clk 0:00:53]} 30. Ng4 {[%clk 0:00:37]}  fxe5 {[%clk 0:00:52]} 31. dxe5 {[%clk 0:00:38]}  Rf8 {[%clk 0:00:51]} 32. Qd4 {[%clk 0:00:36]}  Qg5 {[%clk 0:00:44]} 33. Re1 {[%clk 0:00:08]}  Rf4 {[%clk 0:00:41]} 34. Qa7 {[%clk 0:00:02]}  Rxg4 {[%clk 0:00:33]} 35. Qxa6 {[%clk 0:00:02]}  Bd7 {[%clk 0:00:21]} 36. Qb7 {[%clk 0:00:00]}  Nxe5 {[%clk 0:00:19]} 0-1

[Event "January 9 Late 2024"]
[Site "https://www.chess.com"]
[Date "2024.01.09"]
[Round "10"]
[White "Troff, Kayden"]
[Black "Grischuk, Alexander"]
[Result "1-0"]
[Board "18"]
[TimeControl "180+1"]
[WhiteFideId "2047896"]
[BlackFideId "4126025"]
[WhiteElo "2838"]
[BlackElo "3049"]
[WhiteTeam "USA"]
[BlackTeam "RUS"]
[WhiteClock "0:00:13"]
[BlackClock "0:00:09"]

1. d4 {[%clk 0:03:00]}  e6 {[%clk 0:02:59]} 2. Nf3 {[%clk 0:03:01]}  c5 {[%clk 0:02:59]} 3. c3 {[%clk 0:02:52]}  d5 {[%clk 0:02:58]} 4. Bf4 {[%clk 0:02:52]}  Bd6 {[%clk 0:02:55]} 5. Bxd6 {[%clk 0:02:40]}  Qxd6 {[%clk 0:02:55]} 6. Nbd2 {[%clk 0:02:41]}  Nf6 {[%clk 0:02:54]} 7. g3 {[%clk 0:02:41]}  O-O {[%clk 0:02:51]} 8. Bg2 {[%clk 0:02:41]}  Nbd7 {[%clk 0:02:45]} 9. O-O {[%clk 0:02:40]}  b6 {[%clk 0:02:45]} 10. Qb3 {[%clk 0:02:12]}  Bb7 {[%clk 0:02:42]} 11. Rad1 {[%clk 0:02:11]}  Rfd8 {[%clk 0:02:36]} 12. Rfe1 {[%clk 0:02:11]}  h6 {[%clk 0:02:35]} 13. h4 {[%clk 0:02:07]}  Rac8 {[%clk 0:02:31]} 14. Qa3 {[%clk 0:02:06]}  a5 {[%clk 0:02:30]} 15. Nb3 {[%clk 0:01:56]}  Qc7 {[%clk 0:02:26]} 16. dxc5 {[%clk 0:01:54]}  Nxc5 {[%clk 0:02:25]} 17. Nfd4 {[%clk 0:01:40]}  Ba6 {[%clk 0:02:19]} 18. Nxc5 {[%clk 0:01:05]}  Qxc5 {[%clk 0:02:14]} 19. Nc2 {[%clk 0:00:58]}  Qc7 {[%clk 0:02:01]} 20. Nd4 {[%clk 0:00:51]}  g6 {[%clk 0:01:50]} 21. Rc1 {[%clk 0:00:45]}  e5 {[%clk 0:01:47]} 22. Nf3 {[%clk 0:00:44]}  Ne4 {[%clk 0:01:38]} 23. Nh2 {[%clk 0:00:42]}  Nc5 {[%clk 0:01:28]} 24. b3 {[%clk 0:00:28]}  h5 {[%clk 0:01:23]} 25. Qb2 {[%clk 0:00:27]}  Kg7 {[%clk 0:01:22]} 26. Nf3 {[%clk 0:00:25]}  f6 {[%clk 0:01:22]} 27. Nd2 {[%clk 0:00:20]}  Qe7 {[%clk 0:01:20]} 28. Qb1 {[%clk 0:00:20]}  Rc7 {[%clk 0:01:18]} 29. Rcd1 {[%clk 0:00:20]}  Bb7 {[%clk 0:01:15]} 30. c4 {[%clk 0:00:19]}  d4 {[%clk 0:01:14]} 31. Bxb7 {[%clk 0:00:20]}  Rxb7 {[%clk 0:01:15]} 32. Ne4 {[%clk 0:00:20]}  Ne6 {[%clk 0:01:15]} 33. e3 {[%clk 0:00:20]}  f5 {[%clk 0:01:13]} 34. Nd2 {[%clk 0:00:17]}  e4 {[%clk 0:01:10]} 35. exd4 {[%clk 0:00:17]}  Nxd4 {[%clk 0:01:11]} 36. Kg2 {[%clk 0:00:17]}  Rbd7 {[%clk 0:01:09]} 37. Nf1 {[%clk 0:00:17]}  Nf3 {[%clk 0:01:09]} 38. Rxd7 {[%clk 0:00:16]}  Nxe1+ {[%clk 0:01:08]} 39. Qxe1 {[%clk 0:00:15]}  Qxd7 {[%clk 0:01:04]} 40. Ne3 {[%clk 0:00:14]}  Qd2 {[%clk 0:01:04]} 41. Qa1+ {[%clk 0:00:14]}  Qd4 {[%clk 0:01:01]} 42. Qc1 {[%clk 0:00:14]}  Rc8 {[%clk 0:00:48]} 43. Nxf5+ {[%clk 0:00:12]}  gxf5 {[%clk 0:00:41]} 44. Qg5+ {[%clk 0:00:12]}  Kh8 {[%clk 0:00:23]} 45. Qh6+ {[%clk 0:00:12]}  Kg8 {[%clk 0:00:22]} 46. Qe6+ {[%clk 0:00:13]}  Kg7 {[%clk 0:00:22]} 47. Qxc8 {[%clk 0:00:14]}  Qf6 {[%clk 0:00:15]} 48. Qc7+ {[%clk 0:00:13]}  Kg6 {[%clk 0:00:15]} 49. Qf4 {[%clk 0:00:13]}  Qe7 {[%clk 0:00:12]} 50. Qe3 {[%clk 0:00:12]}  Qd8 {[%clk 0:00:12]} 51. Kh2 {[%clk 0:00:10]}  Kg7 {[%clk 0:00:12]} 52. Kh3 {[%clk 0:00:10]}  Kg6 {[%clk 0:00:12]} 53. Kg2 {[%clk 0:00:10]}  Kg7 {[%clk 0:00:12]} 54. Kh2 {[%clk 0:00:11]}  Kg6 {[%clk 0:00:12]} 55. Kh3 {[%clk 0:00:12]}  Kg7 {[%clk 0:00:13]} 56. Qg5+ {[%clk 0:00:12]}  Qxg5 {[%clk 0:00:09]} 57. hxg5 {[%clk 0:00:13]} 1-0

[Event "January 9 Late 2024"]
[Site "https://www.chess.com"]
[Date "2024.01.09"]
[Round "10"]
[White "Mekhitarian, Krikor Sevag"]
[Black "Yoo, Christopher Woojin"]
[Result "0-1"]
[Board "20"]
[TimeControl "180+1"]
[WhiteFideId "2107660"]
[BlackFideId "30909694"]
[WhiteElo "2758"]
[BlackElo "2981"]
[WhiteTeam "BRA"]
[BlackTeam "USA"]
[WhiteClock "0:00:01"]
[BlackClock "0:00:12"]

1. Nf3 {[%clk 0:03:00]}  g6 {[%clk 0:02:55]} 2. c4 {[%clk 0:03:00]}  Bg7 {[%clk 0:02:54]} 3. e4 {[%clk 0:03:01]}  c5 {[%clk 0:02:54]} 4. d4 {[%clk 0:03:00]}  cxd4 {[%clk 0:02:54]} 5. Nxd4 {[%clk 0:03:01]}  Nc6 {[%clk 0:02:54]} 6. Be3 {[%clk 0:03:02]}  Qb6 {[%clk 0:02:52]} 7. Nb3 {[%clk 0:02:56]}  Qd8 {[%clk 0:02:51]} 8. Qd2 {[%clk 0:02:56]}  Nf6 {[%clk 0:02:29]} 9. f3 {[%clk 0:02:55]}  d6 {[%clk 0:02:09]} 10. Nc3 {[%clk 0:02:55]}  O-O {[%clk 0:02:04]} 11. Be2 {[%clk 0:02:49]}  Ne5 {[%clk 0:01:58]} 12. Nd4 {[%clk 0:02:45]}  Bd7 {[%clk 0:01:50]} 13. Rc1 {[%clk 0:02:37]}  Rc8 {[%clk 0:01:47]} 14. b3 {[%clk 0:02:37]}  a6 {[%clk 0:01:11]} 15. a4 {[%clk 0:02:28]}  Re8 {[%clk 0:01:01]} 16. O-O {[%clk 0:02:20]}  a5 {[%clk 0:01:00]} 17. Ndb5 {[%clk 0:02:15]}  Bc6 {[%clk 0:00:54]} 18. Nd5 {[%clk 0:02:05]}  Ned7 {[%clk 0:00:53]} 19. Bd4 {[%clk 0:01:35]}  Bxb5 {[%clk 0:00:48]} 20. axb5 {[%clk 0:01:09]}  Nxd5 {[%clk 0:00:44]} 21. exd5 {[%clk 0:01:10]}  Bxd4+ {[%clk 0:00:44]} 22. Qxd4 {[%clk 0:01:11]}  Nc5 {[%clk 0:00:39]} 23. Bd1 {[%clk 0:01:01]}  Qb6 {[%clk 0:00:32]} 24. Ra1 {[%clk 0:00:52]}  Ra8 {[%clk 0:00:29]} 25. Rf2 {[%clk 0:00:43]}  Nd7 {[%clk 0:00:11]} 26. Qxb6 {[%clk 0:00:42]}  Nxb6 {[%clk 0:00:12]} 27. Rfa2 {[%clk 0:00:33]}  a4 {[%clk 0:00:12]} 28. bxa4 {[%clk 0:00:28]}  Ra5 {[%clk 0:00:13]} 29. Bb3 {[%clk 0:00:28]}  Nd7 {[%clk 0:00:13]} 30. Kf2 {[%clk 0:00:27]}  Nc5 {[%clk 0:00:13]} 31. Bc2 {[%clk 0:00:27]}  Rc8 {[%clk 0:00:13]} 32. Ke3 {[%clk 0:00:26]}  b6 {[%clk 0:00:13]} 33. Kd4 {[%clk 0:00:27]}  Kf8 {[%clk 0:00:13]} 34. f4 {[%clk 0:00:27]}  h5 {[%clk 0:00:12]} 35. Re1 {[%clk 0:00:27]}  Nd7 {[%clk 0:00:10]} 36. Ra3 {[%clk 0:00:21]}  Rc7 {[%clk 0:00:09]} 37. Rae3 {[%clk 0:00:20]}  Nf6 {[%clk 0:00:08]} 38. g3 {[%clk 0:00:18]}  Ra8 {[%clk 0:00:08]} 39. h3 {[%clk 0:00:18]}  Rac8 {[%clk 0:00:07]} 40. Bb3 {[%clk 0:00:18]}  Ra7 {[%clk 0:00:08]} 41. Rg1 {[%clk 0:00:16]}  Kg7 {[%clk 0:00:07]} 42. Rge1 {[%clk 0:00:16]}  Rcc7 {[%clk 0:00:06]} 43. R1e2 {[%clk 0:00:16]}  Kf8 {[%clk 0:00:05]} 44. Rg2 {[%clk 0:00:15]}  Ra8 {[%clk 0:00:04]} 45. Ra2 {[%clk 0:00:11]}  Ra5 {[%clk 0:00:02]} 46. Re1 {[%clk 0:00:11]}  Ne8 {[%clk 0:00:02]} 47. Bd1 {[%clk 0:00:12]}  Ng7 {[%clk 0:00:02]} 48. Bc2 {[%clk 0:00:11]}  Rca7 {[%clk 0:00:02]} 49. g4 {[%clk 0:00:10]}  Rc7 {[%clk 0:00:03]} 50. g5 {[%clk 0:00:10]}  h4 {[%clk 0:00:02]} 51. Bd3 {[%clk 0:00:09]}  Nh5 {[%clk 0:00:03]} 52. Ke3 {[%clk 0:00:07]}  Ng3 {[%clk 0:00:03]} 53. Rea1 {[%clk 0:00:08]}  Rc5 {[%clk 0:00:02]} 54. Kf3 {[%clk 0:00:08]}  Nf5 {[%clk 0:00:02]} 55. Bxf5 {[%clk 0:00:06]}  gxf5 {[%clk 0:00:03]} 56. Ke3 {[%clk 0:00:06]}  Rxc4 {[%clk 0:00:03]} 57. Kf3 {[%clk 0:00:03]}  Rc3+ {[%clk 0:00:04]} 58. Kg2 {[%clk 0:00:03]}  Rg3+ {[%clk 0:00:04]} 59. Kh2 {[%clk 0:00:03]}  Rf3 {[%clk 0:00:05]} 60. Rc1 {[%clk 0:00:02]}  Rxf4 {[%clk 0:00:05]} 61. Rc6 {[%clk 0:00:01]}  Raxa4 {[%clk 0:00:05]} 62. Rxa4 {[%clk 0:00:01]}  Rxa4 {[%clk 0:00:06]} 63. Rxb6 {[%clk 0:00:02]}  Ra2+ {[%clk 0:00:06]} 64. Kg1 {[%clk 0:00:02]}  Rd2 {[%clk 0:00:06]} 65. Rb8+ {[%clk 0:00:02]}  Kg7 {[%clk 0:00:07]} 66. Re8 {[%clk 0:00:02]}  Rxd5 {[%clk 0:00:07]} 67. Rxe7 {[%clk 0:00:02]}  Rxb5 {[%clk 0:00:08]} 68. Rd7 {[%clk 0:00:02]}  Rb6 {[%clk 0:00:08]} 69. Kg2 {[%clk 0:00:02]}  Kg6 {[%clk 0:00:08]} 70. Kf3 {[%clk 0:00:02]}  Kxg5 {[%clk 0:00:09]} 71. Rxf7 {[%clk 0:00:02]}  Rb3+ {[%clk 0:00:10]} 72. Kg2 {[%clk 0:00:03]}  Kf4 {[%clk 0:00:10]} 73. Rh7 {[%clk 0:00:02]}  Rb2+ {[%clk 0:00:11]} 74. Kh1 {[%clk 0:00:01]}  Kg3 {[%clk 0:00:12]} 75. Rd7 {[%clk 0:00:01]}  Rb1# {[%clk 0:00:12]} 0-1

[Event "January 9 Late 2024"]
[Site "https://www.chess.com"]
[Date "2024.01.09"]
[Round "10"]
[White "Paravyan, David"]
[Black "Akobian, Varuzhan"]
[Result "1-0"]
[Board "22"]
[TimeControl "180+1"]
[WhiteFideId "4194985"]
[BlackFideId "13300580"]
[WhiteElo "3003"]
[BlackElo "2725"]
[WhiteTeam "FID"]
[BlackTeam "USA"]
[WhiteClock "0:01:07"]
[BlackClock "0:00:00"]

1. e4 {[%clk 0:02:57]}  d6 {[%clk 0:02:59]} 2. d4 {[%clk 0:02:57]}  Nf6 {[%clk 0:03:00]} 3. Bd3 {[%clk 0:02:57]}  e5 {[%clk 0:02:58]} 4. Nf3 {[%clk 0:02:57]}  c6 {[%clk 0:02:58]} 5. O-O {[%clk 0:02:55]}  Qc7 {[%clk 0:02:59]} 6. a4 {[%clk 0:02:55]}  Bg4 {[%clk 0:02:58]} 7. dxe5 {[%clk 0:02:54]}  dxe5 {[%clk 0:02:57]} 8. h3 {[%clk 0:02:55]}  Bh5 {[%clk 0:02:57]} 9. Nbd2 {[%clk 0:02:55]}  Nbd7 {[%clk 0:02:57]} 10. Re1 {[%clk 0:02:54]}  Be7 {[%clk 0:02:57]} 11. Nf1 {[%clk 0:02:55]}  O-O {[%clk 0:02:57]} 12. Ng3 {[%clk 0:02:54]}  Rfd8 {[%clk 0:02:54]} 13. Qe2 {[%clk 0:02:51]}  Bg6 {[%clk 0:02:51]} 14. Nh4 {[%clk 0:02:50]}  Nc5 {[%clk 0:02:45]} 15. Nhf5 {[%clk 0:02:50]}  Nxd3 {[%clk 0:02:38]} 16. cxd3 {[%clk 0:02:51]}  Bb4 {[%clk 0:02:37]} 17. Rd1 {[%clk 0:02:43]}  Nd7 {[%clk 0:02:37]} 18. h4 {[%clk 0:02:39]}  Bf8 {[%clk 0:02:12]} 19. h5 {[%clk 0:02:36]}  Bxf5 {[%clk 0:02:12]} 20. Nxf5 {[%clk 0:02:37]}  g6 {[%clk 0:02:04]} 21. Ne3 {[%clk 0:02:21]}  Nf6 {[%clk 0:01:59]} 22. hxg6 {[%clk 0:02:11]}  hxg6 {[%clk 0:01:58]} 23. Bd2 {[%clk 0:02:11]}  Bc5 {[%clk 0:01:46]} 24. Rac1 {[%clk 0:02:11]}  Bd4 {[%clk 0:01:46]} 25. b4 {[%clk 0:02:05]}  Qe7 {[%clk 0:01:32]} 26. g3 {[%clk 0:02:03]}  Kg7 {[%clk 0:01:31]} 27. Kg2 {[%clk 0:02:03]}  Qe6 {[%clk 0:01:29]} 28. Rh1 {[%clk 0:02:02]}  Rh8 {[%clk 0:01:20]} 29. Qf3 {[%clk 0:01:58]}  Rxh1 {[%clk 0:01:04]} 30. Rxh1 {[%clk 0:01:59]}  Rh8 {[%clk 0:01:03]} 31. Rxh8 {[%clk 0:01:57]}  Kxh8 {[%clk 0:01:03]} 32. b5 {[%clk 0:01:54]}  cxb5 {[%clk 0:01:00]} 33. axb5 {[%clk 0:01:55]}  Kg7 {[%clk 0:00:59]} 34. Nc4 {[%clk 0:01:54]}  Nd7 {[%clk 0:00:56]} 35. Bb4 {[%clk 0:01:50]}  Qf6 {[%clk 0:00:48]} 36. Qxf6+ {[%clk 0:01:37]}  Kxf6 {[%clk 0:00:39]} 37. Na5 {[%clk 0:01:34]}  Bc5 {[%clk 0:00:24]} 38. Bc3 {[%clk 0:01:29]}  a6 {[%clk 0:00:21]} 39. f4 {[%clk 0:01:24]}  axb5 {[%clk 0:00:16]} 40. fxe5+ {[%clk 0:01:23]}  Ke7 {[%clk 0:00:16]} 41. Nxb7 {[%clk 0:01:20]}  b4 {[%clk 0:00:16]} 42. Bb2 {[%clk 0:01:19]}  Bb6 {[%clk 0:00:14]} 43. Nd6 {[%clk 0:01:17]}  Nc5 {[%clk 0:00:11]} 44. Nc8+ {[%clk 0:01:17]}  Ke6 {[%clk 0:00:11]} 45. Nxb6 {[%clk 0:01:18]}  Nxd3 {[%clk 0:00:12]} 46. Bd4 {[%clk 0:01:17]}  Nxe5 {[%clk 0:00:12]} 47. Nd5 {[%clk 0:01:02]}  b3 {[%clk 0:00:10]} 48. Nc7+ {[%clk 0:01:03]}  Kd6 {[%clk 0:00:08]} 49. Nb5+ {[%clk 0:01:03]}  Ke6 {[%clk 0:00:08]} 50. Bc3 {[%clk 0:01:04]}  Nc6 {[%clk 0:00:03]} 51. Nd4+ {[%clk 0:01:04]}  Nxd4 {[%clk 0:00:03]} 52. Bxd4 {[%clk 0:01:05]}  f5 {[%clk 0:00:02]} 53. Kf3 {[%clk 0:01:06]}  fxe4+ {[%clk 0:00:03]} 54. Kxe4 {[%clk 0:01:06]}  Kf7 {[%clk 0:00:02]} 55. Bb2 {[%clk 0:01:07]}  Ke6 {[%clk 0:00:02]} 56. Kf4 {[%clk 0:01:08]}  Kf7 {[%clk 0:00:02]} 57. Kg5 {[%clk 0:01:08]}  Ke6 {[%clk 0:00:00]} 58. Kxg6 {[%clk 0:01:07]} 1-0

[Event "January 9 Late 2024"]
[Site "https://www.chess.com"]
[Date "2024.01.09"]
[Round "10"]
[White "Martinez Alcantara, Jose Eduardo"]
[Black "Adewumi, Tanitoluwa"]
[Result "1-0"]
[Board "23"]
[TimeControl "180+1"]
[WhiteFideId "3805662"]
[BlackFideId "30966396"]
[WhiteElo "2998"]
[BlackElo "2720"]
[WhiteTeam "PER"]
[BlackTeam "USA"]
[WhiteClock "0:01:27"]
[BlackClock "0:00:00"]

1. a3 {[%clk 0:02:55]}  e5 {[%clk 0:02:58]} 2. Ra2 {[%clk 0:02:55]}  d5 {[%clk 0:02:58]} 3. Ra1 {[%clk 0:02:56]}  Nf6 {[%clk 0:02:58]} 4. e3 {[%clk 0:02:57]}  Bd6 {[%clk 0:02:57]} 5. d4 {[%clk 0:02:57]}  O-O {[%clk 0:02:57]} 6. Nf3 {[%clk 0:02:58]}  e4 {[%clk 0:02:52]} 7. Nfd2 {[%clk 0:02:54]}  c6 {[%clk 0:02:48]} 8. h3 {[%clk 0:02:54]}  Re8 {[%clk 0:02:40]} 9. c4 {[%clk 0:02:46]}  Nbd7 {[%clk 0:02:29]} 10. Nc3 {[%clk 0:02:46]}  Nf8 {[%clk 0:02:20]} 11. b3 {[%clk 0:02:44]}  Ng6 {[%clk 0:02:20]} 12. Bb2 {[%clk 0:02:45]}  Nh4 {[%clk 0:02:16]} 13. Qc2 {[%clk 0:02:45]}  Nh5 {[%clk 0:01:59]} 14. g4 {[%clk 0:02:20]}  Nf6 {[%clk 0:01:48]} 15. Be2 {[%clk 0:02:20]}  Ng2+ {[%clk 0:01:39]} 16. Kd1 {[%clk 0:02:17]}  h6 {[%clk 0:01:29]} 17. Kc1 {[%clk 0:02:17]}  Be6 {[%clk 0:01:19]} 18. Kb1 {[%clk 0:02:10]}  Nh7 {[%clk 0:01:12]} 19. Ka2 {[%clk 0:02:08]}  Qf6 {[%clk 0:01:12]} 20. Raf1 {[%clk 0:02:08]}  Ng5 {[%clk 0:01:01]} 21. Rhg1 {[%clk 0:02:06]}  Nh4 {[%clk 0:00:58]} 22. Rh1 {[%clk 0:02:07]}  Ng2 {[%clk 0:00:49]} 23. Nd1 {[%clk 0:02:04]}  Nh4 {[%clk 0:00:44]} 24. Ka1 {[%clk 0:01:58]}  Rec8 {[%clk 0:00:41]} 25. c5 {[%clk 0:01:57]}  Be7 {[%clk 0:00:33]} 26. b4 {[%clk 0:01:58]}  a5 {[%clk 0:00:32]} 27. Kb1 {[%clk 0:01:56]}  axb4 {[%clk 0:00:32]} 28. axb4 {[%clk 0:01:57]}  b6 {[%clk 0:00:32]} 29. Nb3 {[%clk 0:01:50]}  Rab8 {[%clk 0:00:27]} 30. Bc3 {[%clk 0:01:46]}  bxc5 {[%clk 0:00:26]} 31. dxc5 {[%clk 0:01:47]}  Qg6 {[%clk 0:00:25]} 32. Nb2 {[%clk 0:01:46]}  Ngf3 {[%clk 0:00:22]} 33. Na4 {[%clk 0:01:41]}  d4 {[%clk 0:00:15]} 34. exd4 {[%clk 0:01:35]}  Bf6 {[%clk 0:00:10]} 35. Rd1 {[%clk 0:01:30]}  Rd8 {[%clk 0:00:07]} 36. Nb6 {[%clk 0:01:30]}  Ng2 {[%clk 0:00:04]} 37. Bxf3 {[%clk 0:01:28]}  Bxb3 {[%clk 0:00:03]} 38. Qxe4 {[%clk 0:01:27]}  Bxd1 {[%clk 0:00:03]} 39. Rxd1 {[%clk 0:01:28]}  Qg5 {[%clk 0:00:02]} 40. Bxg2 {[%clk 0:01:26]}  Re8 {[%clk 0:00:02]} 41. Qd3 {[%clk 0:01:27]}  Qf4 {[%clk 0:00:01]} 42. Bxc6 {[%clk 0:01:27]}  Red8 {[%clk 0:00:00]} 43. Nd5 {[%clk 0:01:27]} 1-0